bitfinex-derivatives/quotes_BTCF0:USTF0_20241122
["timestamp","ask_amount","ask_price","bid_price","bid_amount"]
[1732238601128,0.01218992,98331.0,98330.0,0.01]
[1732238602325,0.14294992,98331.0,98330.0,0.26]
[1732238602917,0.14342743,98331.0,98330.0,0.26]
[1732238603122,0.14342743,98331.0,98330.0,0.16]
[1732238603320,0.13076,98331.0,98330.0,0.16]
[1732238603621,0.14331598,98331.0,98330.0,0.03]
[1732238603930,0.14331598,98331.0,98330.0,0.01]
[1732238605231,0.050793,98327.0,98325.0,0.05178852]
[1732238605933,0.050793,98327.0,98325.0,0.00010728]
[1732238606529,0.01259123,98326.0,98325.0,0.00010728]
[1732238606832,0.050793,98327.0,98325.0,0.00010728]
[1732238609529,0.30512,98326.0,98325.0,0.00010728]
[1732238609922,0.050793,98327.0,98325.0,0.36090728]
[1732238610126,0.050793,98327.0,98325.0,0.00010728]
[1732238610332,0.050793,98327.0,98325.0,0.03010728]
[1732238610733,0.01276663,98326.0,98325.0,0.03010728]
[1732238610923,0.050793,98327.0,98325.0,0.03010728]
[1732238611124,0.01276674,98326.0,98325.0,0.03010728]
[1732238611424,0.01276674,98326.0,98325.0,0.01010728]
[1732238611625,0.01276674,98326.0,98325.0,0.00010728]
[1732238612331,0.13760674,98326.0,98325.0,0.00010728]
[1732238613225,0.44272674,98326.0,98325.0,0.00010728]
[1732238613833,0.44300472,98326.0,98325.0,0.00010728]
[1732238615628,0.44300472,98326.0,98325.0,0.01010728]
[1732238616127,0.13788472,98326.0,98325.0,0.01010728]
[1732238616434,0.12484,98326.0,98325.0,0.01010728]
[1732238616638,0.13796748,98326.0,98325.0,0.00010728]
[1732238616934,0.13796751,98326.0,98325.0,0.00010728]
[1732238617934,0.44308751,98326.0,98325.0,0.00010728]
[1732238618323,0.46425674,98326.0,98325.0,0.00010728]
[1732238619233,0.4822769,98326.0,98325.0,0.00010728]
[1732238622831,0.3574369,98326.0,98325.0,0.00010728]
[1732238623027,0.4823169,98326.0,98325.0,0.00010728]
[1732238623228,0.84410903,98326.0,98325.0,0.00010728]
[1732238624228,0.53898903,98326.0,98325.0,0.00010728]
[1732238624629,0.16006001,98326.0,98325.0,0.00010728]
[1732238624839,0.53991928,98326.0,98325.0,0.00010728]
[1732238625629,0.54626943,98326.0,98325.0,0.00010728]
[1732238626531,0.55263645,98326.0,98325.0,0.00010728]
[1732238627628,0.19165206,98326.0,98325.0,0.00010728]
[1732238627840,0.27007715,98326.0,98325.0,0.00010728]
[1732238628033,0.53975175,98326.0,98325.0,0.00010728]
[1732238628235,0.55245164,98326.0,98325.0,0.00010728]
[1732238629739,0.19165164,98326.0,98325.0,0.00010728]
[1732238629936,0.1920291,98326.0,98325.0,0.00010728]
[1732238630135,0.5528291,98326.0,98325.0,0.00010728]
[1732238630331,0.55337779,98326.0,98325.0,0.00010728]
[1732238632330,0.60417079,98326.0,98325.0,0.00010728]
[1732238635642,0.24337079,98326.0,98325.0,0.00010728]
[1732238635841,0.60417079,98326.0,98325.0,0.00010728]
[1732238640040,0.60454184,98326.0,98325.0,0.00010728]
[1732238640237,0.60042184,98326.0,98325.0,0.00010728]
[1732238641340,0.18882884,98326.0,98325.0,0.71170128]
[1732238641546,0.18882884,98326.0,98325.0,0.21090128]
[1732238641844,0.18247869,98326.0,98325.0,0.57170128]
[1732238642242,0.12185824,98331.0,98329.0,0.050792]
[1732238642445,0.12076,98330.0,98329.0,0.470792]
[1732238642638,0.09133607,98332.0,98330.0,0.050791]
[1732238642840,0.00634913,98331.0,98330.0,0.210791]
[1732238643040,0.0976852,98331.0,98330.0,0.210791]
[1732238643242,0.09133607,98331.0,98330.0,0.210791]
[1732238643644,0.09133607,98333.0,98330.0,0.210791]
[1732238643842,0.14212607,98333.0,98330.0,0.210791]
[1732238644039,0.09133607,98332.0,98330.0,0.210791]
[1732238644252,0.14212707,98332.0,98330.0,0.16]
[1732238644545,0.050791,98332.0,98330.0,0.16]
[1732238645242,0.00634949,98331.0,98330.0,0.16]
[1732238645435,0.050791,98332.0,98330.0,0.16]
[1732238646037,0.24261824,98334.0,98327.0,0.0315]
[1732238646240,0.14208168,98328.0,98327.0,0.0315]
[1732238646747,0.050792,98328.0,98327.0,0.0315]
[1732238646950,0.050792,98328.0,98327.0,0.0515]
[1732238647344,0.050792,98328.0,98327.0,0.3115]
[1732238647541,0.09128483,98329.0,98327.0,0.362293]
[1732238648551,0.09128483,98330.0,98327.0,0.362293]
[1732238648755,0.09128483,98329.0,98327.0,0.362293]
[1732238649345,0.09128483,98329.0,98327.0,0.232293]
[1732238650056,0.050792,98329.0,98327.0,0.232293]
[1732238650254,0.050792,98329.0,98327.0,0.1815]
[1732238650749,0.050792,98328.0,98327.0,0.0815]
[1732238651055,0.09128483,98330.0,98327.0,0.132293]
[1732238651247,0.09128483,98330.0,98328.0,0.050792]
[1732238651441,0.09128483,98330.0,98328.0,0.240792]
[1732238651751,0.09128483,98331.0,98328.0,0.240792]
[1732238652257,0.050791,98330.0,98328.0,0.240792]
[1732238652461,0.04139965,98329.0,98328.0,0.240792]
[1732238652645,0.04138344,98329.0,98328.0,0.240792]
[1732238654253,0.05524913,98329.0,98328.0,0.240792]
[1732238655455,0.05524913,98329.0,98328.0,0.090792]
[1732238655656,0.05524913,98329.0,98328.0,0.140792]
[1732238656061,0.05537069,98329.0,98328.0,0.140792]
[1732238656559,0.05537069,98329.0,98328.0,0.370792]
[1732238657254,0.10616269,98329.0,98328.0,0.120792]
[1732238657849,0.10616269,98329.0,98328.0,0.07]
[1732238658359,0.050793,98326.0,98325.0,0.00010728]
[1732238658546,0.11886287,98326.0,98325.0,0.00010728]
[1732238659554,0.11875889,98326.0,98325.0,0.00010728]
[1732238660161,0.0508,98313.0,98309.0,0.0102]
[1732238660354,0.22070632,98313.0,98305.0,0.050804]
[1732238660754,0.050804,98306.0,98305.0,0.100804]
[1732238661062,0.10607032,98306.0,98305.0,0.110804]
[1732238661365,0.10607032,98306.0,98305.0,0.11085753]
[1732238661560,0.10607032,98306.0,98305.0,0.06005353]
[1732238661945,0.13787032,98306.0,98305.0,0.06005353]
[1732238662450,0.13787032,98306.0,98305.0,0.01005353]
[1732238662645,0.14422154,98306.0,98305.0,0.01005353]
[1732238662850,0.14405555,98306.0,98305.0,0.01005353]
[1732238663656,0.14405555,98306.0,98305.0,5.353e-05]
[1732238664859,0.23521255,98306.0,98305.0,5.353e-05]
[1732238665057,0.13770428,98306.0,98305.0,5.353e-05]
[1732238665355,0.13770428,98306.0,98305.0,0.36085353]
[1732238665560,0.47934533,98306.0,98305.0,5.353e-05]
[1732238665958,0.57050233,98306.0,98305.0,5.353e-05]
[1732238666261,0.49702742,98306.0,98305.0,5.353e-05]
[1732238666665,0.47934533,98306.0,98305.0,5.353e-05]
[1732238666855,0.11854533,98306.0,98305.0,5.353e-05]
[1732238667055,0.47934533,98306.0,98305.0,5.353e-05]
[1732238667755,0.11854533,98306.0,98305.0,5.353e-05]
[1732238667966,0.47934533,98306.0,98305.0,5.353e-05]
[1732238669658,0.47789248,98306.0,98305.0,5.353e-05]
[1732238670054,0.0958688,98306.0,98305.0,5.353e-05]
[1732238670653,0.11719324,98306.0,98305.0,5.353e-05]
[1732238670854,0.47799324,98306.0,98305.0,5.353e-05]
[1732238672069,0.47799324,98306.0,98305.0,0.04005353]
[1732238672472,0.050812,98290.0,98287.0,0.050813]
[1732238672661,0.050812,98290.0,98285.0,0.3608]
[1732238672662,0.165492,98290.0,98289.0,0.07955238]
[1732238672860,0.050816,98282.0,98281.0,0.050816]
[1732238673061,0.06407439,98282.0,98281.0,0.080816]
[1732238673472,0.06407439,98282.0,98281.0,0.03]
[1732238673662,0.06407439,98282.0,98281.0,0.08129508]
[1732238673867,0.06407439,98282.0,98281.0,0.36129508]
[1732238674473,0.01325839,98282.0,98281.0,0.36129508]
[1732238675166,0.01325839,98282.0,98281.0,0.24129508]
[1732238675361,0.01325839,98282.0,98281.0,0.31129508]
[1732238675964,0.050813,98289.0,98281.0,0.31129508]
[1732238676172,0.01323033,98288.0,98281.0,0.31129508]
[1732238676377,0.12791033,98288.0,98287.0,0.411613]
[1732238676564,0.11468,98288.0,98287.0,0.87347651]
[1732238681674,0.11468,98288.0,98287.0,0.76347651]
[1732238682071,0.17875711,98288.0,98287.0,0.38266351]
[1732238682275,0.165493,98288.0,98287.0,0.38266351]
[1732238682472,0.17884849,98288.0,98287.0,0.59266351]
[1732238683167,0.17884849,98288.0,98287.0,0.23186351]
[1732238683375,0.17884849,98288.0,98287.0,0.59266351]
[1732238683976,0.17884849,98288.0,98287.0,0.65266351]
[1732238684787,0.17884849,98288.0,98287.0,0.29186351]
[1732238685978,0.17884849,98288.0,98287.0,0.17186351]
[1732238686380,0.17884849,98288.0,98287.0,0.03186351]
[1732238686572,0.17884849,98288.0,98287.0,0.07186351]
[1732238686872,0.1999354,98288.0,98287.0,0.17186351]
[1732238687070,0.19993637,98288.0,98287.0,0.17186351]
[1732238688271,0.14912337,98288.0,98287.0,0.17186351]
[1732238688474,0.12792745,98288.0,98287.0,0.36267651]
[1732238688679,0.01324745,98288.0,98287.0,0.36267651]
[1732238688883,0.12516745,98288.0,98287.0,0.36267651]
[1732238689576,0.01324745,98288.0,98287.0,0.36267651]
[1732238691396,0.0345266,98288.0,98287.0,0.36267651]
[1732238691685,0.01324745,98288.0,98287.0,0.36267651]
[1732238694488,0.03486165,98288.0,98287.0,0.36267651]
[1732238694984,0.01324745,98288.0,98287.0,0.36267651]
[1732238695379,0.0349239,98288.0,98287.0,0.36267651]
[1732238695584,0.0349239,98288.0,98287.0,0.14267651]
[1732238695783,0.0349239,98288.0,98287.0,0.26267651]
[1732238696085,0.0349239,98288.0,98287.0,0.34267651]
[1732238700299,0.0349239,98288.0,98287.0,0.18267651]
[1732238700300,0.03581901,98288.0,98287.0,0.18267651]
[1732238700595,0.03581901,98288.0,98287.0,0.13186351]
[1732238700806,0.05421603,98288.0,98287.0,0.13186351]
[1732238700990,0.41501603,98288.0,98287.0,0.13186351]
[1732238701292,0.42136821,98288.0,98287.0,0.13186351]
[1732238702292,0.42136821,98288.0,98287.0,0.30186351]
[1732238702496,0.06056821,98288.0,98287.0,0.30186351]
[1732238702692,0.03581901,98288.0,98287.0,0.71347651]
[1732238702891,0.01377654,98288.0,98287.0,0.35267651]
[1732238703201,0.0359846,98288.0,98287.0,0.71347651]
[1732238703398,0.03598274,98288.0,98287.0,0.71347651]
[1732238703785,0.0546967,98288.0,98287.0,0.71347651]
[1732238704195,0.0546967,98288.0,98287.0,0.35267651]
[1732238704391,0.0546967,98288.0,98287.0,0.71347651]
[1732238705494,0.01871396,98288.0,98287.0,0.54347651]
[1732238705694,0.04130843,98288.0,98287.0,0.54347651]
[1732238705898,0.05542997,98288.0,98287.0,0.54347651]
[1732238706097,0.01871396,98288.0,98287.0,0.54347651]
[1732238706310,0.05560398,98288.0,98287.0,0.49266351]
[1732238706600,0.05560398,98288.0,98287.0,0.57266351]
[1732238706803,0.14694094,98288.0,98287.0,0.57266351]
[1732238707193,0.14694094,98288.0,98287.0,0.41266351]
[1732238707501,0.17864094,98288.0,98287.0,0.41266351]
[1732238707698,0.0936559,98288.0,98287.0,0.05186351]
[1732238708093,0.10000797,98288.0,98287.0,0.05186351]
[1732238708292,0.22169437,98288.0,98287.0,0.05186351]
[1732238708501,0.10000797,98288.0,98287.0,0.03186351]
[1732238708902,0.10038979,98288.0,98287.0,0.03186351]
[1732238709590,0.10038979,98288.0,98287.0,1e-08]
[1732238709792,0.050818,98277.0,98276.0,0.3608]
[1732238710007,0.15371039,98277.0,98276.0,0.7208]
[1732238710199,0.0559855,98277.0,98276.0,0.771619]
[1732238710499,0.0559855,98277.0,98276.0,0.82178869]
[1732238710710,0.0559855,98277.0,98276.0,0.46096969]
[1732238710891,0.1679055,98277.0,98276.0,0.46096969]
[1732238711899,0.17425795,98277.0,98276.0,0.46096969]
[1732238712400,0.1679055,98277.0,98276.0,0.46096969]
[1732238713797,0.42949093,98277.0,98261.0,0.0311]
[1732238714097,0.42949093,98277.0,98253.0,0.0313]
[1732238714098,0.05083,98255.0,98253.0,0.0102]
[1732238714301,0.03671608,98254.0,98253.0,0.02]
[1732238714498,0.0557322,98254.0,98253.0,0.02]
[1732238714896,0.03671608,98254.0,98253.0,0.02]
[1732238715304,0.03671608,98254.0,98253.0,0.07032756]
[1732238716602,0.01412157,98254.0,98253.0,0.07032756]
[1732238716802,0.0072,98266.0,98265.0,0.050825]
[1732238716995,0.00152665,98275.0,98274.0,0.05082]
[1732238717197,0.00152665,98275.0,98274.0,0.65162]
[1732238718909,0.00152665,98275.0,98274.0,0.51162]
[1732238719112,0.00152665,98275.0,98274.0,0.76162]
[1732238719296,0.00152665,98275.0,98274.0,0.67162]
[1732238719901,0.00152665,98275.0,98274.0,0.78162]
[1732238721112,0.00152665,98275.0,98274.0,0.83294535]
[1732238722112,0.00152665,98275.0,98274.0,0.20214535]
[1732238722406,0.09133806,98284.0,98274.0,0.16132535]
[1732238722598,0.0072,98287.0,98274.0,0.16132535]
[1732238722599,0.161498,98279.0,98274.0,0.16132535]
[1732238722798,0.02167739,98278.0,98274.0,0.16132535]
[1732238723098,0.161498,98279.0,98274.0,0.16132535]
[1732238723298,0.02167711,98278.0,98274.0,0.16132535]
[1732238723502,0.02172652,98277.0,98274.0,0.16132535]
[1732238723706,0.161498,98279.0,98274.0,0.16132535]
[1732238723707,0.11068,98279.0,98274.0,0.16132535]
[1732238723903,0.02172664,98278.0,98274.0,0.29132535]
[1732238724101,0.11068,98279.0,98274.0,0.29132535]
[1732238724805,0.11068,98279.0,98274.0,0.34214535]
[1732238725109,0.11068,98279.0,98278.0,0.3608]
[1732238725309,0.11068,98279.0,98278.0,0.7308]
[1732238728306,0.050817,98279.0,98278.0,0.7308]
[1732238728603,0.050817,98279.0,98259.0,0.0102]
[1732238728604,0.4425149,98279.0,98264.0,0.05177933]
[1732238728804,0.050825,98265.0,98264.0,0.06]
[1732238729109,0.17488143,98265.0,98264.0,0.06]
[1732238730107,0.17477636,98265.0,98264.0,0.06]
[1732238731107,0.050829,98257.0,98253.0,0.0102]
[1732238731408,0.3608,98264.0,98253.0,0.11043214]
[1732238731609,0.050828,98259.0,98253.0,0.06]
[1732238731812,0.3608,98264.0,98253.0,0.06]
[1732238732015,0.05083,98255.0,98248.0,0.05183458]
[1732238732201,0.632322,98263.0,98235.0,0.0102]
[1732238732202,0.050839,98237.0,98235.0,0.0102]
[1732238732399,0.050839,98237.0,98235.0,0.05]
[1732238733407,0.0024,98254.0,98235.0,0.05]
[1732238733408,0.09133806,98249.0,98235.0,0.05]
[1732238733608,0.01335968,98248.0,98247.0,0.050834]
[1732238733811,0.11788,98264.0,98247.0,0.44]
[1732238734016,0.01328047,98261.0,98254.0,0.05083]
[1732238734312,0.01328047,98260.0,98255.0,0.05083]
[1732238734514,0.01328064,98259.0,98255.0,0.26083]
[1732238734702,0.01328064,98258.0,98256.0,0.050829]
[1732238734902,0.01328064,98257.0,98256.0,0.260829]
[1732238735502,0.01328064,98257.0,98256.0,0.05]
[1732238735704,0.01328064,98257.0,98256.0,0.06]
[1732238736404,0.01328064,98257.0,98256.0,0.100829]
[1732238736608,0.01328064,98257.0,98256.0,0.280829]
[1732238737009,0.01328064,98257.0,98256.0,0.100829]
[1732238737204,0.01328064,98257.0,98256.0,0.180829]
[1732238737411,0.01328064,98257.0,98256.0,0.23265823]
[1732238738915,0.01365222,98257.0,98256.0,0.23265823]
[1732238739618,0.01365222,98257.0,98256.0,0.40265823]
[1732238739807,0.01365222,98257.0,98256.0,0.15265823]
[1732238740109,0.01365222,98257.0,98256.0,0.33265823]
[1732238741517,0.01365222,98257.0,98256.0,0.280829]
[1732238741719,0.01365222,98257.0,98256.0,0.23]
[1732238743907,0.01365222,98257.0,98256.0,0.31]
[1732238747912,0.01365222,98257.0,98256.0,0.360829]
[1732238748112,0.01365222,98257.0,98256.0,0.31]
[1732238754918,0.06448122,98257.0,98256.0,0.31]
[1732238755621,0.03585402,98257.0,98256.0,0.31]
[1732238756123,0.01406376,98257.0,98256.0,0.360829]
[1732238756420,0.03656577,98257.0,98256.0,0.31]
[1732238756630,0.01406376,98257.0,98256.0,0.360829]
[1732238757215,0.50784215,98257.0,98231.0,0.00052]
[1732238757422,0.50784215,98257.0,98242.0,0.1]
[1732238757423,0.050836,98243.0,98242.0,0.1]
[1732238757622,0.21739354,98243.0,98242.0,0.1]
[1732238757819,0.21739391,98243.0,98242.0,0.4608]
[1732238758023,0.21739391,98243.0,98242.0,0.1]
[1732238758228,0.19831369,98243.0,98242.0,0.4608]
[1732238758421,0.21743252,98243.0,98242.0,0.1]
[1732238758625,0.30877058,98243.0,98242.0,0.1]
[1732238758825,0.58458742,98243.0,98242.0,0.08]
[1732238761420,0.050844,98227.0,98226.0,0.0102]
[1732238761623,0.08752169,98227.0,98226.0,0.04005461]
[1732238762019,0.1065417,98227.0,98226.0,5.461e-05]
[1732238762227,0.11289788,98227.0,98226.0,5.461e-05]
[1732238762533,0.11805302,98227.0,98226.0,5.461e-05]
[1732238763324,0.20920566,98227.0,98226.0,5.461e-05]
[1732238763529,0.11805302,98227.0,98226.0,5.461e-05]
[1732238764535,0.11175958,98227.0,98226.0,5.461e-05]
[1732238764824,0.11811633,98227.0,98226.0,5.461e-05]
[1732238765024,0.20922269,98227.0,98226.0,5.461e-05]
[1732238765231,0.11811633,98227.0,98226.0,5.461e-05]
[1732238765435,0.09267656,98227.0,98226.0,5.461e-05]
[1732238765729,0.07508234,98227.0,98226.0,5.461e-05]
[1732238765922,0.15351186,98227.0,98226.0,5.461e-05]
[1732238766123,0.18672485,98227.0,98226.0,5.461e-05]
[1732238766324,0.11181976,98227.0,98226.0,5.461e-05]
[1732238767826,0.83341976,98227.0,98226.0,5.461e-05]
[1732238768528,0.8334674,98227.0,98226.0,5.461e-05]
[1732238768731,0.8143367,98227.0,98226.0,5.461e-05]
[1732238769328,0.83416428,98227.0,98226.0,5.461e-05]
[1732238770227,0.83416394,98227.0,98226.0,5.461e-05]
[1732238771330,0.82900907,98227.0,98226.0,5.461e-05]
[1732238771527,0.58476907,98227.0,98226.0,0.02005461]
[1732238771727,0.22396907,98227.0,98226.0,0.02005461]
[1732238771927,0.167404,98227.0,98226.0,5.461e-05]
[1732238772237,0.15470794,98227.0,98226.0,0.28005461]
[1732238772435,0.17524028,98227.0,98226.0,0.28005461]
[1732238772622,0.15176462,98227.0,98226.0,0.28005461]
[1732238772825,0.13123228,98227.0,98226.0,0.12315461]
[1732238773530,0.17477326,98227.0,98226.0,0.17327545]
[1732238774742,0.17477326,98227.0,98226.0,0.28327545]
[1732238774930,0.15451823,98227.0,98226.0,0.28327545]
[1732238775440,0.17464815,98227.0,98226.0,0.28327545]
[1732238777436,0.17464815,98227.0,98226.0,0.09327545]
[1732238777738,0.17464815,98227.0,98226.0,0.01005461]
[1732238778035,0.17464815,98227.0,98226.0,5.461e-05]
[1732238778237,0.140375,98227.0,98226.0,5.461e-05]
[1732238778445,0.18736047,98227.0,98226.0,0.02005461]
[1732238778743,0.17464815,98227.0,98226.0,0.02005461]
[1732238779436,0.18100425,98227.0,98226.0,0.02005461]
[1732238779639,0.18736065,98227.0,98226.0,0.02005461]
[1732238782131,0.27846701,98227.0,98226.0,0.02005461]
[1732238782336,0.25829445,98227.0,98226.0,0.02005461]
[1732238782531,0.18092456,98227.0,98226.0,0.02005461]
[1732238782934,0.18728052,98227.0,98226.0,0.02005461]
[1732238783234,0.18728052,98227.0,98207.0,0.0332]
[1732238783235,0.050853,98211.0,98200.0,0.1]
[1732238783437,0.05800846,98211.0,98200.0,0.1]
[1732238783642,0.18711638,98210.0,98200.0,0.14]
[1732238783831,0.05800846,98209.0,98200.0,0.15]
[1732238784032,0.05800846,98208.0,98200.0,0.15]
[1732238784228,0.050857,98202.0,98200.0,0.15]
[1732238784427,0.05800846,98201.0,98200.0,0.15]
[1732238784632,0.05800846,98201.0,98200.0,0.14]
[1732238784838,0.41880846,98201.0,98200.0,0.14]
[1732238785036,0.43152336,98201.0,98200.0,0.14]
[1732238785631,0.38720768,98201.0,98200.0,0.14]
[1732238785842,0.43130255,98201.0,98200.0,0.1]
[1732238786043,0.43118227,98201.0,98200.0,0.1]
[1732238786244,0.3608,98201.0,98200.0,0.1]
[1732238786540,0.43110194,98201.0,98200.0,0.1]
[1732238787242,0.46210194,98201.0,98186.0,0.0313]
[1732238787445,0.050865,98187.0,98186.0,0.0513]
[1732238787739,0.23424883,98187.0,98186.0,0.0513]
[1732238788444,0.24060707,98187.0,98186.0,0.0513]
[1732238788637,0.33176673,98187.0,98186.0,0.0513]
[1732238788839,0.23424883,98187.0,98186.0,0.0513]
[1732238789340,0.2812103,98187.0,98186.0,0.0513]
[1732238789531,0.24066761,98187.0,98186.0,0.0513]
[1732238789935,0.24066761,98187.0,98186.0,0.02]
[1732238790536,0.2809795,98187.0,98186.0,0.01]
[1732238790835,0.2809795,98187.0,98186.0,0.240865]
[1732238791236,0.18980261,98187.0,98186.0,0.240865]
[1732238791638,0.28096502,98187.0,98186.0,0.08]
[1732238792045,0.18980261,98187.0,98186.0,0.08]
[1732238792440,0.28096502,98187.0,98186.0,0.08]
[1732238792633,0.23658951,98187.0,98186.0,0.08]
[1732238792842,0.280464,98187.0,98186.0,0.08]
[1732238793343,0.18930159,98187.0,98186.0,0.01]
[1732238794647,0.18930159,98187.0,98186.0,0.1]
[1732238795835,0.18909339,98187.0,98186.0,0.1]
[1732238796243,0.11944,98187.0,98186.0,0.1]
[1732238796459,0.18908876,98187.0,98186.0,0.1]
[1732238797234,0.18908876,98187.0,98186.0,0.01]
[1732238797545,0.15225292,98198.0,98186.0,0.01]
[1732238797546,0.09105385,98192.0,98190.0,0.050863]
[1732238797739,0.07626649,98202.0,98190.0,0.470863]
[1732238797740,0.09105385,98191.0,98190.0,0.470863]
[1732238798046,0.09105385,98196.0,98190.0,0.42]
[1732238798242,0.09105385,98196.0,98195.0,0.050861]
[1732238798434,0.09105385,98198.0,98195.0,0.36]
[1732238798640,0.09105385,98199.0,98198.0,0.050859]
[1732238798849,0.09105385,98200.0,98199.0,0.050859]
[1732238799043,0.09105873,98200.0,98199.0,0.29]
[1732238799236,0.00152801,98207.0,98199.0,0.29]
[1732238799548,0.00152801,98207.0,98202.0,0.050857]
[1732238799752,0.00152801,98207.0,98202.0,0.260857]
[1732238799945,0.00152801,98207.0,98203.0,0.050856]
[1732238800247,0.00152801,98207.0,98206.0,0.050855]
[1732238800548,0.00152801,98207.0,98206.0,0.330855]
[1732238801048,0.09259533,98207.0,98206.0,0.330855]
[1732238801348,0.00152801,98207.0,98206.0,0.430855]
[1732238801551,0.09106732,98210.0,98206.0,0.430855]
[1732238801847,0.12908,98218.0,98217.0,0.050849]
[1732238801848,0.22635764,98218.0,98217.0,0.050849]
[1732238802052,0.09106732,98222.0,98217.0,0.440849]
[1732238802243,0.05092881,98224.0,98221.0,0.3608]
[1732238802244,8.281e-05,98224.0,98221.0,0.3608]
[1732238802446,8.281e-05,98224.0,98222.0,0.050847]
[1732238802748,8.281e-05,98224.0,98222.0,0.480847]
[1732238802946,8.281e-05,98224.0,98222.0,0.511447]
[1732238803353,8.281e-05,98224.0,98222.0,0.431447]
[1732238803647,8.281e-05,98224.0,98222.0,0.29271339]
[1732238804249,8.281e-05,98224.0,98222.0,0.28271339]
[1732238804451,8.281e-05,98224.0,98222.0,0.44271339]
[1732238804751,8.281e-05,98224.0,98222.0,0.31271339]
[1732238805453,8.281e-05,98224.0,98222.0,0.34271339]
[1732238807349,8.281e-05,98224.0,98222.0,0.45271339]
[1732238807841,8.281e-05,98224.0,98222.0,0.28271339]
[1732238808045,8.281e-05,98224.0,98222.0,0.56271339]
[1732238808354,8.281e-05,98224.0,98223.0,0.30544]
[1732238808540,8.281e-05,98224.0,98223.0,0.73544]
[1732238811556,8.281e-05,98224.0,98223.0,0.61544]
[1732238811852,8.281e-05,98224.0,98223.0,0.31]
[1732238812757,8.281e-05,98224.0,98223.0,0.45]
[1732238813849,8.281e-05,98224.0,98223.0,0.36]
[1732238814050,8.281e-05,98224.0,98223.0,0.22]
[1732238814452,0.36088281,98224.0,98223.0,0.22]
[1732238814651,8.281e-05,98224.0,98223.0,0.22]
[1732238814855,0.03168281,98224.0,98223.0,0.22]
[1732238815150,0.04606609,98224.0,98223.0,0.22]
[1732238815355,0.04606629,98224.0,98223.0,0.22]
[1732238816059,0.40686629,98224.0,98223.0,0.22]
[1732238816255,0.42985429,98224.0,98223.0,0.17]
[1732238816460,0.050849,98217.0,98215.0,0.05100121]
[1732238816752,0.3925,98216.0,98215.0,0.11]
[1732238818557,0.40683508,98216.0,98215.0,0.11]
[1732238818762,0.43743508,98216.0,98215.0,0.11]
[1732238819660,0.43743508,98216.0,98215.0,0.23]
[1732238820054,0.43749483,98216.0,98215.0,0.23]
[1732238821457,0.43749483,98216.0,98215.0,0.32]
[1732238822154,0.43749483,98216.0,98215.0,0.1]
[1732238822660,0.43749483,98216.0,98215.0,0.33]
[1732238823270,0.43749483,98216.0,98215.0,0.34]
[1732238823271,0.37519483,98216.0,98215.0,0.34]
[1732238824068,0.42604483,98216.0,98215.0,0.34]
[1732238825967,0.42577337,98216.0,98215.0,0.34]
[1732238826161,0.41165,98216.0,98215.0,0.34]
[1732238826365,0.42574722,98216.0,98215.0,0.34]
[1732238826561,0.44831338,98216.0,98215.0,0.34]
[1732238827161,0.37489722,98216.0,98215.0,0.39085]
[1732238828262,0.37489722,98216.0,98215.0,0.34]
[1732238829169,0.37476337,98216.0,98215.0,0.34]
[1732238830869,0.11972,98220.0,98218.0,0.050848]
[1732238831072,0.01383825,98219.0,98218.0,0.520848]
[1732238831368,0.03168281,98224.0,98219.0,0.050848]
[1732238831568,0.01366288,98223.0,98219.0,0.520848]
[1732238831759,0.01366288,98222.0,98219.0,0.520848]
[1732238831959,0.03168281,98224.0,98219.0,0.520848]
[1732238832156,0.01366286,98223.0,98219.0,0.520848]
[1732238832355,0.01361991,98222.0,98219.0,0.520848]
[1732238832557,0.01361991,98221.0,98219.0,0.520848]
[1732238832761,0.01361991,98220.0,98219.0,0.47]
[1732238832962,0.01361991,98220.0,98219.0,0.36]
[1732238833263,0.01361991,98220.0,98219.0,0.44]
[1732238833992,0.01361991,98220.0,98219.0,0.8008]
[1732238835268,8.281e-05,98224.0,98223.0,0.050846]
[1732238835477,8.281e-05,98224.0,98223.0,0.490846]
[1732238837569,0.0072,98233.0,98232.0,0.050841]
[1732238837770,0.0072,98240.0,98239.0,0.050838]
[1732238837971,0.01335445,98240.0,98239.0,0.510838]
[1732238838165,0.0072,98251.0,98244.0,0.050835]
[1732238838367,0.04342944,98245.0,98244.0,0.851635]
[1732238838674,0.04342944,98245.0,98244.0,0.85171781]
[1732238841370,0.04342944,98245.0,98244.0,0.90322088]
[1732238842376,0.0301,98245.0,98244.0,0.90322088]
[1732238842575,0.0435529,98245.0,98244.0,0.90322088]
[1732238843476,0.0301,98245.0,98244.0,0.90322088]
[1732238843673,0.0024,98251.0,98246.0,0.050834]
[1732238843875,0.01338397,98250.0,98246.0,0.440834]
[1732238844177,0.01338397,98249.0,98246.0,0.440834]
[1732238844373,0.01338397,98248.0,98246.0,0.400834]
[1732238844579,0.01338397,98247.0,98246.0,0.400834]
[1732238844879,0.01338397,98247.0,98246.0,0.40223179]
[1732238845267,0.0024,98251.0,98246.0,0.48223179]
[1732238845579,0.0024,98251.0,98250.0,0.050832]
[1732238845779,0.01350856,98251.0,98250.0,0.42222979]
[1732238846272,0.01351862,98251.0,98250.0,0.25222979]
[1732238846481,0.01351862,98251.0,98250.0,0.14222979]
[1732238846671,0.01351862,98251.0,98250.0,0.17139779]
[1732238847570,0.01351862,98251.0,98250.0,0.39139779]
[1732238848172,0.0072,98263.0,98250.0,0.39139779]
[1732238848375,0.01375149,98257.0,98253.0,0.3608]
[1732238848678,0.36232692,98265.0,98259.0,0.050827]
[1732238848880,0.05493992,98264.0,98262.0,0.050826]
[1732238849079,0.03294095,98263.0,98262.0,0.510826]
[1732238849291,0.01374935,98263.0,98262.0,0.871626]
[1732238849777,0.01374935,98263.0,98262.0,0.87302379]
[1732238849981,0.00152692,98265.0,98264.0,0.050825]
[1732238850166,0.00152692,98265.0,98264.0,0.470825]
[1732238850775,0.00152692,98265.0,98264.0,0.47222279]
[1732238851777,0.0152672,98265.0,98264.0,0.47222279]
[1732238852283,0.00152692,98265.0,98264.0,0.47222279]
[1732238852676,0.01528022,98265.0,98264.0,0.47222279]
[1732238853386,0.01528022,98265.0,98264.0,0.42222279]
[1732238853981,0.0072,98274.0,98264.0,0.37139779]
[1732238854170,0.01374169,98273.0,98272.0,0.050821]
[1732238854374,0.01374169,98273.0,98272.0,0.510821]
[1732238854875,0.01374169,98273.0,98272.0,0.51221879]
[1732238856278,0.00012685,98278.0,98272.0,0.51221879]
[1732238856491,0.00012685,98278.0,98272.0,0.37221879]
[1732238856783,0.01379452,98277.0,98273.0,0.05082]